bitfinex/quotes_ETHUSD_20240601
["timestamp","ask_amount","ask_price","bid_price","bid_amount"]
[1717220639260,2.63738,3791.7,3791.6,0.636]
[1717220642283,2.63755,3791.4,3790.9,7.43]
[1717220642463,0.501365,3791.3,3790.9,7.43]
[1717220642784,2.7969578,3791.4,3791.3,0.636]
[1717220643282,2.63755,3791.4,3791.3,0.636]
[1717220644023,2.63789,3790.9,3790.4,7.43]
[1717220644298,2.63759,3791.4,3790.8,0.636]
[1717220644500,2.63759,3791.4,3791.3,0.636]
[1717220644788,2.63759,3791.4,3790.6,7.43]
[1717220644960,2.63759,3791.4,3791.3,0.636]
[1717220647657,2.63722,3791.9,3791.3,0.636]
[1717220647904,2.63722,3791.9,3791.8,0.636]
[1717220655321,2.63722,3791.9,3791.1,9.758]
[1717220655504,2.63722,3791.9,3791.2,0.9758]
[1717220655709,2.63722,3791.9,3791.8,0.636]
[1717220660063,2.63722,3791.9,3791.3,2.328]
[1717220660268,2.63722,3791.9,3791.8,0.636]
[1717220661992,2.63722,3791.9,3791.3,2.328]
[1717220662309,2.63722,3791.9,3791.8,0.636]
[1717220674935,2.63722,3791.9,3791.4,1.07338]
[1717220675135,2.63722,3791.9,3791.8,0.636]
[1717220676687,2.63722,3791.9,3791.1,7.43]
[1717220676833,2.63722,3791.9,3791.8,0.636]
[1717220677034,3.147052,3791.9,3791.8,0.636]
[1717220677291,3.71726964,3791.9,3791.8,0.636]
[1717220679491,3.20743764,3791.9,3791.8,0.636]
[1717220679668,2.63722,3791.9,3791.8,0.636]
[1717220683690,2.63735,3791.7,3791.1,7.43]
[1717220683989,2.63735,3791.7,3791.6,0.636]
[1717220692298,2.63335,3791.7,3791.6,0.636]
[1717220698200,4.98225,3792.2,3791.6,0.636]
[1717220698395,4.98225,3792.2,3792.1,0.636]
[1717220698735,5.55243395,3792.2,3792.1,0.636]
[1717220700701,3.20723395,3792.2,3792.1,0.636]
[1717220700870,2.63705,3792.2,3792.1,0.636]
[1717220702675,5.6716324,3792.2,3792.1,0.636]
[1717220705722,3.2072324,3792.2,3792.1,0.636]
[1717220706028,2.63705,3792.2,3792.1,0.636]
[1717220706164,2.54634962,3792.8,3792.1,0.636]
[1717220706165,2.63668,3792.7,3792.1,0.636]
[1717220706374,0.08194962,3792.8,3792.6,0.636]
[1717220708321,0.08194962,3792.8,3792.2,2.4632]
[1717220708497,0.08194962,3792.8,3792.7,0.636]
[1717220709022,0.08194962,3792.8,3792.3,0.24632]
[1717220709192,0.08194962,3792.8,3792.7,0.636]
[1717220712100,2.63672,3792.6,3792.0,7.43]
[1717220712300,2.63672,3792.6,3792.5,0.636]
[1717220714052,2.63672,3792.6,3792.5,3.0992]
[1717220714248,2.63672,3792.6,3792.5,3.40912]
[1717220715635,0.08194962,3792.8,3792.5,3.40912]
[1717220715836,0.08194962,3792.8,3792.7,0.636]
[1717220716921,0.08194962,3792.8,3792.5,2.77312]
[1717220717118,0.08194962,3792.8,3792.7,0.636]
[1717220717322,0.08194962,3792.8,3792.7,0.976912]
[1717220723576,0.08194962,3792.8,3792.7,0.340912]
[1717220723777,0.08194962,3792.8,3792.7,2.9345]
[1717220724836,0.08194962,3792.8,3792.7,0.636]
[1717220725281,0.08194962,3792.8,3792.1,2.2789]
[1717220725577,0.08194962,3792.8,3792.7,0.636]
[1717220728090,0.08194962,3792.8,3792.7,2.9149]
[1717220728388,0.08194962,3792.8,3792.7,3.20639]
[1717220730447,0.13715322,3792.8,3792.7,3.20639]
[1717220733199,2.63597,3793.7,3792.8,2.2789]
[1717220733367,2.63597,3793.7,3792.7,0.92749]
[1717220733368,2.63597,3793.7,3793.6,0.636]
[1717220733888,2.63597,3793.7,3792.9,7.43]
[1717220734089,2.63636,3793.1,3792.9,7.43]
[1717220734312,2.63636,3793.1,3793.0,0.636]
[1717220736716,2.63636,3793.1,3792.9,7.43]
[1717220737215,2.63636,3793.1,3793.0,0.636]
[1717220738412,2.63636,3793.1,3793.0,1.4426]
[1717220739512,5.05405,3793.6,3793.0,0.636]
[1717220739687,5.05405,3793.6,3793.5,0.636]
[1717220739688,2.63605,3793.6,3793.5,0.636]
[1717220744443,2.63605,3793.6,3792.9,2.4207]
[1717220744647,2.63605,3793.6,3793.5,0.636]
[1717220745000,2.63384343,3794.0,3793.5,0.636]
[1717220745001,0.15994343,3794.0,3793.5,0.636]
[1717220745202,2.63571,3794.1,3793.0,0.24207]
[1717220745424,2.63571,3794.1,3793.9,0.636]
[1717220747661,2.7177527,3794.6,3794.0,0.30567]
[1717220748143,2.7177527,3794.6,3793.6,7.43]
[1717220748365,2.7177527,3794.6,3794.5,0.636]
[1717220748879,2.63574,3794.0,3793.6,7.43]
[1717220748999,2.63574,3794.0,3793.9,0.636]
[1717220751811,2.63541,3794.5,3793.9,0.636]
[1717220752012,2.63541,3794.5,3794.4,0.636]
[1717220756343,0.0824127,3794.6,3794.4,0.636]
[1717220756455,0.0824127,3794.6,3793.7,7.43]
[1717220756655,0.0824127,3794.6,3794.5,0.636]
[1717220770655,0.0824127,3794.6,3793.8,0.98507]
[1717220770791,0.0824127,3794.6,3794.5,0.636]
[1717220773227,0.0824127,3794.6,3793.8,0.98507]
[1717220773228,4.94784,3794.5,3793.8,0.98507]
[1717220773392,4.94784,3794.5,3794.4,0.636]
[1717220773910,4.94784,3794.5,3793.7,7.43]
[1717220774075,4.94784,3794.5,3794.3,0.636]
[1717220779428,2.63544,3794.5,3794.3,0.636]
[1717220780779,2.63544,3794.5,3793.8,0.743]
[1717220780980,2.63544,3794.5,3794.4,0.636]
[1717220785661,0.0824127,3794.6,3794.4,0.636]
[1717220788614,0.0824127,3794.6,3793.8,0.743]
[1717220788810,2.5117127,3794.6,3794.5,0.636]
[1717220789567,0.0824127,3794.6,3794.5,0.636]
[1717220790922,0.0824127,3794.6,3793.9,1.080895]
[1717220791121,0.0824127,3794.6,3794.5,0.636]
[1717220792120,0.0824127,3794.6,3793.9,1.080895]
[1717220792325,2.4293,3794.5,3793.9,1.080895]
[1717220792643,2.4293,3794.5,3794.4,0.636]
[1717220793720,0.0824127,3794.6,3794.4,0.636]
[1717220795480,2.6354,3794.5,3793.8,0.743]
[1717220795845,2.6354,3794.5,3794.4,0.636]
[1717220797527,2.6354,3794.5,3793.8,0.743]
[1717220797821,2.6354,3794.5,3794.4,0.636]
[1717220798002,2.6354,3794.5,3793.7,7.43]
[1717220798199,0.0824127,3794.6,3793.7,7.43]
[1717220798200,2.63571,3794.1,3793.7,7.43]
[1717220798527,2.63571,3794.1,3794.0,0.636]
[1717220798818,2.63571,3794.1,3793.2,7.43]
[1717220799016,2.63571,3794.1,3794.0,0.636]
[1717220801617,2.63603,3793.6,3793.2,7.43]
[1717220801786,2.63603,3793.6,3793.5,0.636]
[1717220804601,4.94803,3793.6,3793.0,0.24207]
[1717220804819,4.94803,3793.6,3793.5,0.636]
[1717220811325,2.63603,3793.6,3793.5,0.636]
[1717220811543,2.63603,3793.6,3792.7,9.8397]
[1717220811697,2.63603,3793.6,3793.5,0.636]
[1717220813165,2.63571,3794.1,3793.5,0.636]
[1717220813372,2.63571,3794.1,3794.0,0.636]
[1717220818094,2.63571,3794.1,3793.8,2.4097]
[1717220818268,2.63571,3794.1,3794.0,0.636]
[1717220820661,2.7177727,3794.6,3794.0,0.636]
[1717220820873,2.7177727,3794.6,3794.5,0.636]
[1717220833781,2.7177727,3794.6,3794.0,2.437]
[1717220834123,2.7177727,3794.6,3794.5,0.636]
[1717220836796,2.7177727,3794.6,3793.9,0.24097]
[1717220837032,2.7177727,3794.6,3794.5,0.636]
[1717220837336,5.2033727,3794.6,3794.5,0.636]
[1717220839339,5.2033727,3794.6,3793.8,7.43]
[1717220839542,5.2033727,3794.6,3794.5,0.636]
[1717220841638,5.1533727,3794.6,3794.5,0.636]
[1717220842424,2.63563,3794.2,3793.8,7.43]
[1717220842738,2.63563,3794.2,3794.1,0.636]
[1717220847857,0.0324127,3794.6,3794.1,0.636]
[1717220848154,0.0324127,3794.6,3794.5,0.636]
[1717220852311,2.4545127,3794.6,3794.5,0.636]
[1717220852627,0.0324127,3794.6,3794.5,3.1032]
[1717220852826,0.0324127,3794.6,3794.5,3.41352]
[1717220858569,0.0324127,3794.6,3794.5,0.94632]
[1717220860118,0.0324127,3794.6,3794.5,0.636]
[1717220862377,2.63542,3794.5,3793.6,10.43]
[1717220862585,2.63542,3794.5,3794.4,0.636]
[1717220864555,2.63542,3794.5,3793.6,12.7947]
[1717220864737,2.63542,3794.5,3794.4,0.636]
[1717220869420,2.63542,3794.5,3793.7,2.3647]
[1717220869568,2.63542,3794.5,3794.4,0.636]
[1717220869918,5.08962,3794.5,3794.4,0.636]
[1717220872638,5.08962,3794.5,3793.6,7.43]
[1717220872847,5.08962,3794.5,3794.4,0.636]
[1717220874148,5.08962,3794.5,3793.6,7.43]
[1717220874291,5.08962,3794.5,3794.4,0.636]
[1717220874738,5.08962,3794.5,3793.6,7.43]
[1717220874944,5.08962,3794.5,3794.4,0.636]
[1717220879466,5.08962,3794.5,3793.6,7.43]
[1717220879669,5.08962,3794.5,3794.4,0.636]
[1717220880580,5.08962,3794.5,3793.6,7.43]
[1717220880871,5.08962,3794.5,3794.4,0.636]
[1717220881827,5.08962,3794.5,3793.6,7.43]
[1717220882134,5.08962,3794.5,3794.4,0.636]
[1717220882582,5.08962,3794.5,3793.6,7.43]
[1717220882749,2.63571,3794.1,3793.6,7.43]
[1717220882926,2.63571,3794.1,3794.0,0.636]
[1717220883283,2.63582,3793.9,3793.6,7.43]
[1717220883460,2.63582,3793.9,3793.8,0.636]
[1717220883665,2.63582,3793.9,3793.6,7.43]
[1717220883981,2.63582,3793.9,3793.8,0.636]
[1717220884628,2.63582,3793.9,3793.6,7.43]
[1717220884834,2.63582,3793.9,3793.8,0.636]
[1717220886474,5.248602,3793.9,3793.1,7.43]
[1717220886626,4.98502,3793.9,3793.6,0.636]
[1717220887254,2.6361,3793.5,3793.1,7.43]
[1717220887456,2.6361,3793.5,3793.4,0.636]
[1717220888475,2.6361,3793.5,3793.1,7.43]
[1717220888995,2.6361,3793.5,3793.1,8.066]
[1717220889586,2.6361,3793.5,3793.1,7.43]
[1717220889802,2.6361,3793.5,3793.2,0.636]
[1717220892269,2.89971,3793.5,3793.2,0.636]
[1717220892484,2.89971,3793.5,3792.6,7.43]
[1717220892770,2.6361,3793.5,3793.3,0.636]
[1717220898223,2.6361,3793.5,3792.8,2.2618]
[1717220898381,2.6361,3793.5,3793.4,0.636]
[1717220900289,2.6361,3793.5,3792.8,2.2618]
[1717220900627,2.6361,3793.5,3792.9,0.96918]
[1717220901003,2.6361,3793.5,3793.4,0.636]
[1717220902416,2.6361,3793.5,3792.6,7.43]
[1717220902667,2.6361,3793.5,3793.4,0.636]
[1717220902895,0.50505,3793.5,3792.6,7.43]
[1717220903200,2.63646,3793.0,3792.6,7.43]
[1717220903400,2.63646,3793.0,3792.9,0.636]
[1717220904754,2.63646,3793.0,3792.1,9.8974]
[1717220905005,2.63646,3793.0,3792.9,0.636]
[1717220905338,2.63646,3793.0,3792.2,0.98974]
[1717220905643,2.63646,3793.0,3792.9,0.636]
[1717220906459,2.63646,3793.0,3792.2,0.98974]
[1717220906961,2.63664,3792.8,3792.2,0.98974]
[1717220907171,2.63664,3792.8,3792.7,0.636]
[1717220908207,2.63664,3792.8,3792.1,7.43]
[1717220908346,2.63689,3792.4,3792.1,7.43]
[1717220908546,2.63689,3792.4,3792.3,0.636]
[1717220911097,2.63689,3792.4,3792.1,7.43]
[1717220911299,2.63689,3792.4,3791.2,2.4674]
[1717220911300,2.63732,3791.8,3791.2,2.4674]
[1717220911508,2.63732,3791.8,3791.7,0.636]
[1717220912255,2.63732,3791.8,3791.2,2.4674]
[1717220912504,2.63732,3791.8,3791.7,0.636]
[1717220913605,2.63732,3791.8,3791.1,3.0]
[1717220913806,2.63732,3791.8,3791.2,1.043]
[1717220914017,2.63732,3791.8,3791.7,0.636]
[1717220915361,2.63732,3791.8,3791.0,7.43]
[1717220915608,2.63732,3791.8,3791.7,0.636]
[1717220918563,2.63732,3791.8,3791.0,7.43]
[1717220918764,2.63732,3791.8,3791.7,0.636]
[1717220934379,2.63732,3791.8,3791.4,2.3859]
[1717220934587,2.63732,3791.8,3791.7,0.636]
[1717220936530,2.63695,3792.3,3791.7,0.636]
[1717220936746,2.63695,3792.3,3792.2,0.636]
[1717220939099,2.63695,3792.3,3791.4,2.3859]
[1717220939339,2.63695,3792.3,3792.2,0.636]
[1717220941311,3.20710025,3792.3,3792.2,0.636]
[1717220943344,3.20710025,3792.3,3791.5,0.23859]
[1717220943509,3.20710494,3792.3,3792.2,0.636]
[1717220943873,5.66180579,3792.3,3792.2,0.636]
[1717220944153,2.63726,3791.9,3791.4,7.43]
[1717220944460,2.63726,3791.9,3791.8,0.636]
[1717220945535,5.09196,3791.9,3791.8,0.636]
[1717220946243,5.09196,3791.9,3790.9,7.43]
[1717220946387,5.09196,3791.9,3791.8,0.636]
[1717220947985,2.63756,3791.4,3790.9,7.43]
[1717220948146,2.63756,3791.4,3791.3,0.636]
[1717220963841,2.63756,3791.4,3790.9,7.43]
[1717220964179,4.91586,3791.4,3791.3,0.636]
[1717220964841,4.91586,3791.4,3790.9,7.43]
[1717220965038,4.91586,3791.4,3791.3,0.636]
[1717220965503,4.91586,3791.4,3790.9,7.43]
[1717220965785,4.91586,3791.4,3791.3,0.636]
[1717220967472,4.91586,3791.4,3790.9,7.43]
[1717220967781,4.91586,3791.4,3791.3,0.636]
[1717220968478,5.407446,3791.4,3790.9,7.43]
[1717220968769,4.91586,3791.4,3791.2,0.636]
[1717220969688,4.91586,3791.4,3790.9,7.43]
[1717220969850,4.91586,3791.4,3791.1,0.636]
[1717220970180,4.91586,3791.4,3790.9,7.43]
[1717220970181,2.6377,3791.2,3790.9,7.43]
[1717220970360,2.6377,3791.2,3791.1,0.636]
[1717220971579,2.6377,3791.2,3790.4,19.67]
[1717220971783,2.6377,3791.2,3791.1,0.636]
[1717220977635,2.6377,3791.2,3790.4,7.43]
[1717220977760,2.6377,3791.2,3791.1,0.636]
[1717220979400,2.63738,3791.7,3791.1,0.636]
[1717220979589,2.63738,3791.7,3791.6,0.636]
[1717220979782,2.63738,3791.7,3791.0,2.4371]
[1717220980142,2.63761,3791.4,3791.3,0.636]
[1717220987045,2.63704,3792.2,3791.3,0.636]
[1717220987188,2.6372,3791.9,3791.4,2.4371]
[1717220987386,2.6372,3791.9,3791.8,0.636]
[1717220997869,2.6372,3791.9,3791.4,2.4371]
[1717220998073,2.6372,3791.9,3791.4,0.98671]
[1717220998376,2.6372,3791.9,3791.8,0.636]
[1717220998860,2.6372,3791.9,3791.1,7.43]
[1717220999021,2.6372,3791.9,3791.8,0.636]
[1717220999678,5.0162,3791.9,3791.8,0.636]
[1717221000277,5.0162,3791.9,3791.1,7.43]
[1717221000809,5.0162,3791.9,3791.8,0.636]
[1717221001372,2.6372,3791.9,3791.8,0.636]
[1717221005936,2.63687,3792.4,3791.8,0.636]
[1717221006136,2.63687,3792.4,3792.3,0.636]
[1717221006696,2.63687,3792.4,3791.5,2.3947]
[1717221006848,2.63687,3792.4,3792.3,0.636]
[1717221015277,2.63687,3792.4,3791.7,2.3947]
[1717221015483,2.63687,3792.4,3792.3,0.636]
[1717221020231,2.63687,3792.4,3791.6,7.43]
[1717221020749,2.63687,3792.4,3792.3,0.636]
[1717221020960,3.138457,3792.4,3792.3,0.636]
[1717221023207,3.138457,3792.4,3791.6,7.43]
[1717221023413,2.63687,3792.4,3792.3,0.636]
[1717221030937,2.63687,3792.4,3791.6,7.43]
[1717221031138,2.63687,3792.4,3792.3,0.636]
[1717221033345,2.63687,3792.4,3791.6,7.43]
[1717221033591,2.63687,3792.4,3792.3,0.636]
[1717221033791,3.138457,3792.4,3792.3,0.636]
[1717221035233,2.63687,3792.4,3792.3,0.636]
[1717221049289,3.20700178,3792.4,3792.3,0.636]
[1717221050003,3.20700274,3792.4,3792.3,0.636]
[1717221052076,2.63725,3791.9,3791.6,7.43]
[1717221052278,2.63725,3791.9,3791.8,0.636]
[1717221058230,3.133215,3791.9,3791.8,0.636]
[1717221058733,2.63725,3791.9,3791.8,0.636]
[1717221060913,2.6375,3791.5,3791.1,9.7589]
[1717221061221,2.6375,3791.5,3791.4,0.636]
[1717221063799,2.6375,3791.5,3790.9,2.4273]
[1717221063969,2.6375,3791.5,3791.4,0.636]
[1717221064503,2.6375,3791.5,3790.9,2.4273]
[1717221064659,2.6375,3791.5,3791.4,0.636]
[1717221075762,2.63762,3791.3,3790.7,7.43]
[1717221075955,2.63762,3791.3,3791.2,0.636]
[1717221079381,2.63762,3791.3,3790.8,2.4273]
[1717221079584,2.63762,3791.3,3791.2,0.636]
[1717221085837,2.63762,3791.3,3790.6,2.3949]
[1717221086037,2.63762,3791.3,3791.2,0.636]
[1717221092273,2.63732,3791.8,3791.2,0.636]
[1717221092481,2.63732,3791.8,3791.7,0.636]
[1717221098798,2.63732,3791.8,3790.9,7.43]
[1717221099012,2.63732,3791.8,3791.7,0.636]
[1717221099215,3.142402,3791.8,3791.7,0.636]
[1717221099366,5.555902,3791.8,3791.7,0.636]
[1717221099559,5.555902,3791.8,3790.9,7.43]
[1717221099757,5.05082,3791.8,3791.7,0.636]
[1717221101012,5.05082,3791.8,3790.9,7.43]
[1717221101220,5.05082,3791.8,3791.7,0.636]
[1717221101584,2.63762,3791.3,3790.9,7.43]
[1717221101786,2.63762,3791.3,3791.2,0.636]
[1717221106004,2.63762,3791.3,3791.1,2.305]
[1717221106187,2.63762,3791.3,3791.2,0.636]
[1717221106823,2.63729,3791.8,3791.2,0.636]
[1717221107024,2.63729,3791.8,3791.7,0.636]
[1717221108022,2.63729,3791.8,3791.1,2.305]
[1717221108178,2.63729,3791.8,3791.7,0.636]
[1717221108631,2.63729,3791.8,3791.1,2.305]
[1717221108775,2.2987,3791.7,3790.9,9.735]
[1717221108981,2.2987,3791.7,3791.6,0.636]
[1717221109730,2.63729,3791.8,3791.6,0.636]
[1717221112700,4.93564,3792.3,3791.6,0.636]
[1717221112900,4.93564,3792.3,3792.2,0.636]
[1717221116525,4.93564,3792.3,3791.4,2.305]
[1717221116711,4.93564,3792.3,3792.2,0.636]
[1717221118116,4.93564,3792.3,3791.3,7.43]
[1717221118117,2.63694,3792.3,3791.3,7.43]
[1717221118323,2.63694,3792.3,3792.2,0.636]
[1717221120237,3.0,3793.1,3791.3,7.43]
[1717221120238,2.63716,3792.0,3791.3,7.43]
[1717221120576,2.63716,3792.0,3791.9,0.636]
[1717221122677,2.63716,3792.0,3791.0,2.3627]
[1717221122833,4.90643,3791.6,3790.9,7.43]
[1717221123036,0.490643,3791.5,3790.9,7.43]
[1717221123234,4.90643,3791.6,3791.5,0.636]
[1717221126394,2.63743,3791.6,3791.5,0.636]
[1717221131394,2.63772,3791.2,3790.9,7.43]
[1717221131734,0.489072,3791.1,3790.4,2.3984]
[1717221132034,2.63772,3791.2,3791.1,0.636]
[1717221142291,2.63797,3790.8,3790.3,7.43]
[1717221142744,2.63797,3790.8,3790.7,0.636]
[1717221144595,2.63844,3790.2,3789.5,9.8947]
[1717221144795,2.63844,3790.2,3790.1,0.636]
[1717221147511,2.63844,3790.2,3789.5,2.4647]
[1717221147853,2.63844,3790.2,3790.1,0.636]
[1717221150719,2.63844,3790.2,3789.2,2.4647]
[1717221151027,2.63844,3790.2,3790.1,0.636]
[1717221151599,2.63844,3790.2,3789.2,2.4647]
[1717221151797,2.63844,3790.2,3790.1,0.636]
[1717221153346,2.63873,3789.7,3789.2,2.4647]
[1717221153546,2.63873,3789.7,3789.6,0.636]
[1717221153846,2.63873,3789.7,3789.2,2.4647]
[1717221154020,2.63873,3789.7,3789.6,0.636]
[1717221156950,2.63873,3789.7,3789.1,7.43]
[1717221157147,2.63873,3789.7,3789.6,0.636]
[1717221157353,2.63873,3789.7,3789.1,7.43]
[1717221157515,2.63873,3789.7,3789.6,0.636]
[1717221159650,2.63873,3789.7,3789.1,7.43]
[1717221159820,2.63873,3789.7,3789.6,0.636]
[1717221161226,2.63873,3789.7,3789.1,7.43]
[1717221161427,2.63873,3789.7,3789.6,0.636]
[1717221164263,2.63873,3789.7,3789.1,7.43]
[1717221164799,2.63873,3789.7,3789.6,0.636]
[1717221165124,2.63873,3789.7,3788.7,7.43]
[1717221165372,5.13513,3789.7,3789.6,0.636]
[1717221166648,5.13513,3789.7,3789.6,0.586]
[1717221173181,2.63873,3789.7,3789.6,0.586]
[1717221178876,2.63873,3789.7,3789.0,2.3934]
[1717221179075,2.63873,3789.7,3789.6,0.636]
[1717221180730,2.63873,3789.7,3789.0,2.3934]
[1717221180927,2.63873,3789.7,3789.6,0.636]
[1717221181077,4.91003,3789.7,3789.6,0.636]
[1717221182105,4.91003,3789.7,3788.7,9.7517]
[1717221182281,4.91003,3789.7,3789.6,0.636]
[1717221186122,2.63873,3789.7,3789.6,0.636]
[1717221186494,3.0,3790.8,3789.7,2.3217]
[1717221186495,2.63842,3790.2,3789.7,2.3217]
[1717221186710,2.63842,3790.2,3790.0,0.636]
[1717221187789,2.63842,3790.2,3789.2,7.43]
[1717221188019,2.63842,3790.2,3789.4,2.3217]
[1717221188329,2.63842,3790.2,3790.1,0.636]
[1717221188476,5.74403002,3790.2,3790.1,0.636]
[1717221190612,3.10561002,3790.2,3788.8,2.3217]
[1717221190819,3.39176802,3790.1,3789.5,0.636]
[1717221191021,0.57046802,3790.0,3789.5,0.636]
[1717221191644,2.63885,3789.6,3789.5,0.636]
[1717221192041,2.63921,3789.0,3788.7,7.43]
[1717221192187,2.63921,3789.0,3788.8,0.636]
[1717221192710,2.63921,3789.0,3788.9,0.636]
[1717221197764,2.63921,3789.0,3788.1,7.43]
[1717221198012,2.63921,3789.0,3788.9,0.636]
[1717221199667,2.63945,3788.7,3788.1,7.43]
[1717221199848,2.63945,3788.7,3787.9,2.3217]
[1717221200029,2.63977,3788.3,3788.2,0.636]
[1717221200535,2.63977,3788.3,3787.7,7.43]
[1717221200730,2.63977,3788.3,3788.2,0.636]
[1717221202130,2.63977,3788.3,3787.7,7.43]
[1717221202337,2.63977,3788.3,3788.2,0.636]
[1717221202536,2.63935,3788.8,3788.2,0.636]
[1717221202839,2.63935,3788.8,3788.7,0.636]
[1717221205831,2.63903,3789.3,3788.7,0.636]
[1717221206035,2.63903,3789.3,3789.2,0.636]
[1717221209463,2.63903,3789.3,3788.6,2.4981]
[1717221209670,4.91653,3789.3,3789.2,0.636]
[1717221210700,2.63903,3789.3,3789.2,0.636]
[1717221211630,3.130683,3789.3,3788.4,7.43]
[1717221211837,2.63903,3789.3,3789.1,0.636]
[1717221213085,2.63934,3788.9,3788.4,7.43]
[1717221213229,2.63934,3788.9,3788.8,0.636]
[1717221229902,2.63976,3788.3,3787.8,7.43]
[1717221230211,2.63976,3788.3,3787.7,2.2648]
[1717221230212,2.63976,3788.3,3788.2,0.636]
[1717221233002,2.63976,3788.3,3787.5,2.2648]
[1717221233218,3.148276,3788.3,3788.2,0.636]
[1717221235426,2.6394,3788.8,3788.2,2.9008]
[1717221235723,2.97030134,3790.2,3788.7,0.636]
[1717221235955,2.63852,3790.0,3789.9,0.636]
[1717221236244,3.20911167,3790.0,3789.9,0.636]
[1717221236445,3.81662371,3790.0,3789.9,0.636]
[1717221236652,2.63887,3789.5,3788.9,7.43]
[1717221236835,2.63887,3789.5,3789.4,0.636]
[1717221237548,2.63887,3789.5,3789.4,1.525]
[1717221237748,2.6385,3790.1,3789.4,1.525]
[1717221238047,0.55045087,3790.0,3789.4,1.525]
[1717221238250,2.63864,3789.9,3789.0,1.525]
[1717221244218,2.63864,3789.9,3788.6,2.2648]
[1717221244425,2.63864,3789.9,3789.2,1.525]
[1717221247550,2.63864,3789.9,3789.6,1.525]
[1717221248266,1.056112,3792.8,3789.6,1.525]
[1717221248267,2.4466,3791.5,3789.6,1.6775]
[1717221248430,0.57041525,3791.4,3790.2,1.525]
[1717221248637,2.4466,3791.5,3790.2,1.525]
[1717221248838,0.81505593,3791.4,3790.2,1.525]
[1717221249249,0.24466,3791.4,3790.2,1.525]
[1717221249885,3.24466,3791.4,3790.2,1.525]
[1717221250204,2.63803,3790.7,3790.2,1.525]
[1717221250355,2.63803,3790.7,3790.6,1.525]
[1717221257693,2.63803,3790.7,3789.7,7.43]
[1717221258027,2.63803,3790.7,3790.3,1.525]
[1717221263743,2.63803,3790.7,3790.6,0.635]
[1717221265138,2.63803,3790.7,3789.7,7.43]
[1717221265342,2.63803,3790.7,3790.6,0.635]
[1717221269236,2.63803,3790.7,3789.7,7.43]
[1717221269399,2.63803,3790.7,3790.6,0.635]
[1717221271545,2.63803,3790.7,3789.7,7.43]
[1717221271855,2.63833,3790.3,3789.7,7.43]
[1717221272139,2.63833,3790.3,3790.2,0.635]
[1717221288905,2.63802,3790.8,3790.2,0.635]
[1717221289077,0.57041304,3790.7,3789.7,7.43]
[1717221289422,0.57041304,3790.7,3790.6,0.635]
[1717221289858,2.63802,3790.8,3790.6,0.635]
[1717221290865,2.63767,3791.3,3790.6,0.635]
[1717221291199,2.4029,3791.4,3790.2,2.2944]
[1717221291200,2.6378,3791.1,3790.2,2.2944]
[1717221291523,2.6378,3791.1,3791.0,0.635]
[1717221291717,3.20816384,3791.1,3791.0,0.635]
[1717221292163,3.20816293,3791.1,3791.0,0.635]
[1717221293073,2.6378,3791.1,3791.0,0.635]
[1717221310482,2.6378,3791.1,3790.4,2.2723]
[1717221310637,2.6378,3791.1,3791.0,0.635]
[1717221314660,2.6378,3791.1,3790.4,2.2723]
[1717221314794,2.6378,3791.1,3791.0,0.635]
[1717221324059,4.9272,3791.1,3791.0,0.635]
[1717221330666,4.9272,3791.1,3790.4,2.2723]
[1717221330869,4.9272,3791.1,3791.0,0.635]
[1717221334578,2.63817,3790.5,3790.3,7.43]
[1717221334899,2.63817,3790.5,3790.4,0.635]
[1717221336896,2.63817,3790.5,3790.3,7.43]
[1717221337098,2.63817,3790.5,3790.4,0.635]
[1717221339220,2.63817,3790.5,3789.7,7.43]
[1717221339436,2.63817,3790.5,3790.4,0.635]
[1717221350350,2.63817,3790.5,3789.6,0.1525]
[1717221350493,2.63817,3790.5,3790.4,0.635]
[1717221355844,2.63856,3790.0,3789.5,2.2631]
[1717221355998,2.63856,3790.0,3789.9,0.635]
[1717221364174,2.63856,3790.0,3789.5,2.2631]
[1717221364526,2.63856,3790.0,3789.9,0.635]
[1717221368275,2.63856,3790.0,3789.5,0.96931]
[1717221368484,2.63856,3790.0,3789.9,0.635]
[1717221392272,2.63856,3790.0,3789.5,0.96931]
[1717221392473,2.63856,3790.0,3789.9,0.635]
[1717221396403,2.63856,3790.0,3789.9,0.94589]
[1717221398527,2.63856,3790.0,3789.9,0.635]
[1717221433878,2.63812,3790.6,3789.9,0.635]
[1717221434087,2.63812,3790.6,3790.5,0.635]
[1717221434250,3.20855865,3790.6,3790.5,0.635]
[1717221435186,2.63812,3790.6,3790.5,0.635]
[1717221435691,5.59354383,3790.6,3790.5,0.635]
[1717221437146,5.59354383,3790.6,3789.8,9.8709]
[1717221437364,5.02312,3790.6,3790.4,0.635]